bitfinex/quotes_SOLUSD_20241019
["timestamp","ask_amount","ask_price","bid_price","bid_amount"]
[1729335391919,26.4728,154.5,154.45,6.4745]
[1729335393936,30.249784,154.49,154.44,22.9506]
[1729335394140,30.249784,154.49,154.44,6.4749]
[1729335396823,8.14732255,154.5,154.41,6.3193]
[1729335397019,8.14732255,154.5,154.46,6.4738]
[1729335397732,8.14732255,154.5,154.42,36.1896]
[1729335399042,8.14732255,154.5,154.48,6.4733]
[1729335419755,8.14732255,154.5,154.46,6.4737]
[1729335420568,8.14732255,154.5,154.47,6.4736]
[1729335420946,8.14732255,154.5,154.46,6.474]
[1729335428447,8.14732255,154.5,154.42,16.1896]
[1729335428673,23.776884,154.49,154.42,16.1896]
[1729335428975,20.0,154.48,154.41,6.3193]
[1729335429162,26.4733,154.48,154.43,6.4753]
[1729335431375,30.250784,154.47,154.42,6.4755]
[1729335431875,6.4739,154.47,154.42,6.4755]
[1729335434583,6.4733,154.48,154.43,6.475]
[1729335438276,30.250584,154.47,154.42,6.4757]
[1729335439971,6.4737,154.47,154.42,6.4757]
[1729335447792,7.59773864,154.48,154.44,6.4749]
[1729335448685,6.4734,154.48,154.44,6.4749]
[1729335449688,20.0,154.48,154.38,16.34164629]
[1729335449876,6.4729,154.49,154.44,6.4746]
[1729335450791,14.61982255,154.5,154.38,16.34164629]
[1729335450967,8.14732255,154.5,154.46,6.4737]
[1729335453267,8.14732255,154.5,154.49,6.4729]
[1729335454388,8.14732255,154.5,154.44,6.4714]
[1729335454586,8.14732255,154.5,154.48,6.4732]
[1729335468907,8.14732255,154.5,154.44,6.4714]
[1729335469108,8.14732255,154.5,154.43,15.102]
[1729335469317,8.14732255,154.5,154.46,6.4737]
[1729335469991,8.14732255,154.5,154.43,15.102]
[1729335470193,14.61992255,154.5,154.45,6.4745]
[1729335471187,14.61992255,154.5,154.43,15.102]
[1729335471406,14.61992255,154.5,154.46,6.4741]
[1729335480924,14.61992255,154.5,154.45,6.4744]
[1729335481498,14.61992255,154.5,154.46,6.474]
[1729335481918,8.14732255,154.5,154.46,6.474]
[1729335483206,8.14732255,154.5,154.43,15.102]
[1729335483207,8.14732255,154.5,154.44,6.2969]
[1729335483406,8.14732255,154.5,154.48,6.4733]
[1729335485228,8.14732255,154.5,154.44,6.2969]
[1729335485519,8.14732255,154.5,154.46,6.4737]
[1729335499533,23.776884,154.49,154.45,6.4745]
[1729335499953,30.249884,154.49,154.45,6.4745]
[1729335500737,30.249884,154.49,154.44,6.4749]
[1729335507359,8.14732255,154.5,154.46,6.4741]
[1729335508941,8.14732255,154.5,154.41,16.2832]
[1729335509149,8.14732255,154.5,154.47,6.4736]
[1729335515167,23.776884,154.51,154.47,6.4736]
[1729335516260,6.4721,154.51,154.47,6.4736]
[1729335516463,14.6738918,154.51,154.47,6.4736]
[1729335517643,8.2017918,154.51,154.47,6.4736]
[1729335520767,8.2017918,154.51,154.41,16.2832]
[1729335520961,8.2017918,154.51,154.48,6.4732]
[1729335538061,30.249384,154.5,154.45,6.4744]
[1729335538262,6.4731,154.49,154.44,6.4749]
[1729335545304,23.776884,154.48,154.44,6.4749]
[1729335555609,30.250384,154.48,154.44,6.4749]
[1729335555811,23.776884,154.48,154.44,6.4749]
[1729335555992,30.250184,154.48,154.44,6.4749]
[1729335572003,6.4728,154.5,154.41,16.2832]
[1729335572207,23.776884,154.49,154.46,6.474]
[1729335585537,23.776884,154.49,154.4,6.2969]
[1729335585828,23.776884,154.47,154.4,6.2969]
[1729335586131,23.776884,154.47,154.43,6.475]
[1729335586314,23.776884,154.47,154.4,6.2969]
[1729335586315,23.776884,154.47,154.44,6.4746]
[1729335586736,23.776884,154.48,154.44,6.4746]
[1729335600521,23.776884,154.48,154.45,6.4745]
[1729335601242,30.250284,154.48,154.41,15.1223]
[1729335603834,23.776884,154.48,154.41,15.1223]
[1729335604035,23.776884,154.46,154.42,6.4758]
[1729335604630,23.776884,154.46,154.41,15.1223]
[1729335606232,23.776884,154.47,154.41,15.1223]
[1729335609951,23.776884,154.47,154.44,6.4749]
[1729335610328,23.776884,154.48,154.44,6.4749]
[1729335612153,23.776884,154.49,154.45,6.4743]
[1729335615551,30.249784,154.49,154.45,6.4743]
[1729335620469,1.12593202,154.5,154.41,15.1223]
[1729335620650,1.12593202,154.5,154.48,6.4733]
[1729335620967,6.4717,154.52,154.48,6.4733]
[1729335621266,6.4717,154.52,154.47,6.4736]
[1729335621761,23.776884,154.51,154.47,6.4736]
[1729335629476,30.248684,154.52,154.47,6.4736]
[1729335630885,23.776884,154.5,154.47,6.4736]
[1729335631877,23.776884,154.5,154.48,6.4732]
[1729335632559,23.776884,154.5,154.48,6.4729]
[1729335643083,30.249684,154.5,154.45,6.4745]
[1729335644781,30.249684,154.5,154.46,6.4739]
[1729335644782,23.776884,154.5,154.46,6.4739]
[1729335646993,23.776884,154.5,154.47,6.4736]
[1729335647572,23.776884,154.5,154.48,6.4732]
[1729335651294,23.776884,154.5,154.45,16.3454]
[1729335651503,23.776884,154.5,154.49,6.4729]
[1729335654790,23.776884,154.5,154.49,6.207162]
[1729335656400,19.50988964,154.6,154.49,16.3454]
[1729335656603,16.3454,154.59,154.5,6.4724]
[1729335656805,16.3454,154.59,154.56,6.4698]
[1729335657295,7.06222098,154.6,154.56,6.4698]
[1729335659801,23.776884,154.59,154.56,6.4698]
[1729335662607,23.776884,154.59,154.57,6.4695]
[1729335663687,23.776884,154.59,154.56,6.4698]
[1729335666504,30.245684,154.59,154.53,15.291]
[1729335667206,30.245684,154.59,154.55,6.4703]
[1729335669397,30.245684,154.59,154.49,21.6002]
[1729335669603,30.245684,154.59,154.54,6.4707]
[1729335675512,23.776884,154.59,154.54,6.4707]
[1729335675699,23.776884,154.57,154.54,6.4707]
[1729335681520,43.216884,154.57,154.49,21.6002]
[1729335681723,23.776884,154.57,154.53,6.4711]
[1729335685531,23.776884,154.55,154.51,6.4718]
[1729335685727,23.776884,154.55,154.46,6.61]
[1729335685728,23.776884,154.53,154.46,6.61]
[1729335686106,23.776884,154.53,154.49,6.4728]
[1729335686320,23.776884,154.53,154.5,6.4724]
[1729335687325,23.776884,154.53,154.51,6.4719]
[1729335687719,23.776884,154.53,154.52,6.4716]
[1729335704831,23.776884,154.53,154.46,21.6853]
[1729335705029,23.776884,154.53,154.52,6.4716]
[1729335717043,23.776884,154.53,154.51,6.4719]
[1729335724743,23.776884,154.53,154.46,21.6853]
[1729335724938,23.776884,154.53,154.48,6.4732]
[1729335724939,30.248084,154.53,154.48,6.4732]
[1729335725262,30.248084,154.53,154.49,6.4728]
[1729335725468,23.776884,154.52,154.48,6.4732]
[1729335726343,30.248784,154.52,154.42,22.4403]
[1729335726757,30.248784,154.52,154.47,6.4734]
[1729335728267,23.776884,154.5,154.46,6.474]
[1729335728749,30.249684,154.5,154.42,22.4403]
[1729335729278,23.776884,154.5,154.46,6.474]
[1729335730671,23.776884,154.5,154.42,22.4403]
[1729335730849,23.776884,154.5,154.42,15.8619]
[1729335731041,6.4729,154.49,154.42,15.8619]
[1729335731241,23.776884,154.48,154.42,15.8619]
[1729335731868,30.250184,154.48,154.4,7.05817528]
[1729335732264,23.776884,154.48,154.4,7.05817528]
[1729335732459,23.776884,154.48,154.44,6.4748]
[1729335732859,23.776884,154.48,154.4,7.05817528]
[1729335733060,23.776884,154.49,154.44,6.4745]
[1729335733373,23.776884,154.49,154.4,7.05817528]
[1729335734071,23.776884,154.49,154.44,6.4746]
[1729335734271,44.56950565,154.51,154.38,22.61384629]
[1729335734576,44.56950565,154.51,154.47,6.4736]
[1729335735856,20.0,154.49,154.47,6.4736]
[1729335736074,23.776884,154.48,154.47,6.4736]
[1729335736880,23.776884,154.48,154.46,6.474]
[1729335740471,23.776884,154.48,154.47,6.4737]
[1729335747174,0.06988964,154.49,154.48,6.4733]
[1729335751355,0.06988964,154.49,154.48,21.6363]
[1729335754195,23.776884,154.51,154.48,15.163]
[1729335754367,23.776884,154.51,154.5,6.4724]
[1729335783399,23.776884,154.51,154.44,21.422]
[1729335783603,23.776884,154.52,154.44,15.2857]
[1729335784284,23.776884,154.52,154.44,15.21581036]
[1729335786113,30.248584,154.52,154.44,15.21581036]
[1729335786410,23.776884,154.5,154.44,15.21581036]
[1729335788423,23.776884,154.5,154.41,20.0]
[1729335795612,39.451884,154.5,154.41,20.0]
[1729335798208,23.776884,154.5,154.41,20.0]
[1729335829425,20.0,154.5,154.41,20.0]
[1729335829634,23.776884,154.49,154.41,20.0]
[1729335831330,23.776884,154.49,154.4,21.4816]
[1729335834520,23.776884,154.49,154.4,15.4728]
[1729335841124,23.776884,154.47,154.38,0.17354629]
[1729335841434,35.3295,154.45,154.38,0.17354629]
[1729335841636,23.776884,154.44,154.38,0.17354629]
[1729335841848,23.776884,154.42,154.38,0.17354629]
[1729335842925,23.776884,154.43,154.38,0.17354629]
[1729335843255,69.693984,154.39,154.38,0.17354629]
[1729335843633,78.37108965,154.39,154.38,0.17354629]
[1729335843954,23.776884,154.35,154.24,16.3433]
[1729335844157,43.216884,154.36,154.24,16.3433]
[1729335844356,23.776884,154.32,154.24,16.3433]
[1729335845366,6.6568,154.31,154.23,0.6259383]
[1729335845648,23.776884,154.32,154.23,0.6259383]
[1729335846235,23.776884,154.33,154.23,0.6259383]
[1729335857354,23.776884,154.33,154.25,20.0]
[1729335859462,23.776884,154.33,154.24,23.72469852]
[1729335860047,23.776884,154.33,154.24,16.3433]
[1729335864657,23.776884,154.33,154.25,20.0]
[1729335864855,15.3295,154.34,154.25,20.0]
[1729335866367,23.776884,154.33,154.25,20.0]
[1729335873054,23.776884,154.37,154.25,20.0]
[1729335875374,15.5696,154.42,154.26,21.5104]
[1729335875668,15.5696,154.42,154.27,20.0]
[1729335875877,15.5696,154.42,154.28,5.81303841]
[1729335876254,31.177835,154.42,154.29,20.0]
[1729335876872,23.776884,154.41,154.29,20.0]
[1729335877792,31.177835,154.42,154.29,20.0]
[1729335879270,23.776884,154.41,154.29,20.0]
[1729335879881,23.776884,154.41,154.27,20.0]
[1729335880262,21.73,154.48,154.31,35.1168]
[1729335880480,28.2033,154.48,154.31,35.1168]
[1729335881265,47.6633,154.48,154.31,35.1168]
[1729335881575,20.0,154.47,154.31,35.1168]
[1729335881783,23.776884,154.46,154.31,42.89836676]
[1729335883299,21.73,154.48,154.33,20.0]
[1729335883590,21.73,154.48,154.25,7.37942055]
[1729335883591,21.73,154.48,154.37,20.0]
[1729335884089,15.5696,154.48,154.37,20.0]
[1729335884488,29.97695885,154.52,154.39,20.0]
[1729335885668,23.776884,154.51,154.39,20.0]
[1729335885870,29.97695885,154.52,154.39,20.0]
[1729335886467,8.31625885,154.52,154.41,20.0]
[1729335888882,23.776884,154.51,154.41,20.0]
[1729335889188,23.776884,154.51,154.42,15.8575]
[1729335889392,23.776884,154.51,154.43,20.0]
[1729335890471,21.9302,154.56,154.43,20.0]
[1729335893403,23.776884,154.55,154.43,20.0]
[1729335894776,23.776884,154.55,154.43,27.78156676]
[1729335897901,23.776884,154.55,154.43,20.0]
[1729335898075,23.776884,154.55,154.42,15.8575]
[1729335899775,23.776884,154.55,154.43,20.0]
[1729335904199,23.776884,154.55,154.43,25.81303841]
[1729335905484,23.776884,154.55,154.44,6.1952]
[1729335905703,23.776884,154.55,154.45,20.0]
[1729335905905,23.776884,154.55,154.45,33.59460517]
[1729335906197,23.776884,154.55,154.46,15.1573]
[1729335906372,23.776884,154.55,154.47,20.0]
[1729335914397,23.776884,154.55,154.47,25.81303841]
[1729335915294,16.1238,154.59,154.47,33.59460517]
[1729335915487,16.1238,154.59,154.49,20.0]
[1729335916786,23.776884,154.58,154.49,20.0]
[1729335918409,23.776884,154.58,154.49,27.78156676]
[1729335920787,16.1238,154.59,154.49,27.78156676]
[1729335920983,27.32423514,154.63,154.5,6.0931]
[1729335921197,27.32423514,154.63,154.53,20.0]
[1729335922411,23.776884,154.62,154.53,20.0]
[1729335925216,23.276884,154.62,154.53,25.81303841]
[1729335925714,27.32423514,154.63,154.53,33.59460517]
[1729335926214,27.32423514,154.63,154.55,20.0]
[1729335927207,12.17863514,154.63,154.55,20.0]
[1729335929620,23.776884,154.66,154.55,20.0]
[1729335938304,23.776884,154.66,154.55,26.0931]
[1729335942104,23.776884,154.66,154.55,33.87466676]
[1729335943031,23.776884,154.66,154.55,39.68770517]
[1729335954038,15.1456,154.67,154.57,20.0]
[1729335954244,15.1456,154.67,154.57,27.78156676]
[1729335954925,15.1456,154.67,154.57,33.59460517]
[1729335960928,15.1456,154.67,154.59,20.0]
[1729335963041,23.776884,154.66,154.59,20.0]
[1729335965662,15.1456,154.67,154.59,20.0]
[1729335970659,23.776884,154.7,154.59,20.0]
[1729335974769,15.8596,154.71,154.61,20.0]
[1729335975765,15.8596,154.71,154.61,27.78156676]
[1729335978753,13.02023151,154.77,154.61,27.78156676]
[1729335979066,15.8596,154.75,154.62,5.81303841]
[1729335979259,15.8596,154.75,154.63,20.0]
[1729335980258,23.776884,154.74,154.63,20.0]
[1729335980462,23.776884,154.74,154.65,20.0]
[1729335984267,15.8596,154.75,154.65,20.0]
[1729335985467,15.8596,154.75,154.65,26.0339]
[1729335985670,15.8596,154.75,154.65,31.84693841]
[1729335988958,0.6259383,154.77,154.66,23.776884]
[1729335989152,0.6259383,154.77,154.67,20.0]
[1729335992684,0.6259383,154.77,154.67,27.78156676]
[1729335993869,0.6259383,154.77,154.67,33.59460517]
[1729335997188,0.6259383,154.77,154.67,27.78156676]
[1729336001868,0.6259383,154.77,154.67,33.59460517]
[1729336006097,0.6259383,154.77,154.67,27.78156676]
[1729336006486,0.6259383,154.77,154.67,33.59460517]
[1729336009792,23.776884,154.76,154.67,25.81303841]
[1729336010098,15.2069,154.75,154.67,25.81303841]
[1729336011096,21.8115,154.75,154.67,5.81303841]
[1729336011477,21.8115,154.75,154.65,20.0]
[1729336012600,23.776884,154.74,154.64,16.338]
[1729336012988,23.776884,154.74,154.64,20.0]
[1729336017809,23.776884,154.74,154.61,6.3705]
[1729336019277,23.776884,154.74,154.62,20.0]
[1729336024691,23.776884,154.74,154.62,27.78156676]
[1729336024892,23.776884,154.74,154.63,7.78156676]
[1729336025485,23.776884,154.74,154.65,15.085]
[1729336025701,21.8115,154.75,154.65,15.085]
[1729336029490,23.776884,154.74,154.64,20.0]
[1729336029913,23.776884,154.74,154.63,13.59460517]
[1729336030123,23.776884,154.74,154.62,15.085]
[1729336052628,21.8115,154.75,154.63,25.81303841]
[1729336052830,21.8115,154.75,154.63,33.59460517]
[1729336053127,21.8115,154.75,154.63,25.81303841]
[1729336053833,23.776884,154.74,154.63,25.81303841]
[1729336058028,15.2069,154.75,154.63,25.81303841]
[1729336058234,23.776884,154.76,154.65,20.0]
[1729336068547,23.776884,154.76,154.64,22.9891]
[1729336073636,23.776884,154.74,154.64,22.9891]
[1729336089360,23.776884,154.74,154.65,20.0]
[1729336089543,23.776884,154.76,154.65,27.84665131]
[1729336089737,0.6259383,154.77,154.65,33.65968972]
[1729336090146,0.6259383,154.77,154.65,27.84665131]
[1729336090336,0.6259383,154.77,154.65,33.65968972]
[1729336090663,0.6259383,154.77,154.65,41.44129688]
[1729336091261,23.776884,154.76,154.65,41.44129688]
[1729336093439,23.776884,154.76,154.65,13.65968972]
[1729336093632,23.776884,154.74,154.65,7.84665131]
[1729336116147,29.905384,154.74,154.65,7.84665131]
[1729336132895,23.776884,154.74,154.65,7.84665131]
[1729336133182,23.776884,154.74,154.65,14.28745131]
[1729336136569,0.6259383,154.77,154.66,20.0]
[1729336136774,23.776884,154.76,154.66,20.0]
[1729336136977,32.75619574,154.76,154.66,20.0]
[1729336141864,32.75619574,154.76,154.65,22.06905847]
[1729336145688,32.75619574,154.76,154.65,14.28745131]
[1729336146776,6.4623,154.75,154.65,14.28745131]
[1729336146971,32.75619574,154.76,154.65,14.28745131]
[1729336156010,52.21619574,154.76,154.65,14.28745131]
[1729336156183,32.75619574,154.76,154.65,14.28745131]
[1729336163028,23.776884,154.76,154.65,14.28745131]
[1729336194256,30.238784,154.76,154.65,14.28745131]
[1729336194448,30.238784,154.76,154.65,7.84665131]
[1729336195943,23.776884,154.76,154.65,7.84665131]
[1729336200230,30.238784,154.76,154.65,7.84665131]
[1729336200434,23.776884,154.74,154.65,7.84665131]
[1729336208949,30.254884,154.74,154.65,7.84665131]
[1729336209842,36.717584,154.74,154.65,7.84665131]
[1729336210034,20.0,154.73,154.65,7.84665131]
[1729336210248,23.776884,154.72,154.61,6.131]
[1729336213966,15.5274,154.71,154.61,6.131]
[1729336214173,23.776884,154.7,154.6,15.3882]
[1729336216947,23.776884,154.7,154.61,6.4652]
[1729336229092,39.566284,154.7,154.61,6.4652]
[1729336237978,23.776884,154.7,154.61,6.4652]
[1729336260897,23.776884,154.7,154.6,15.3882]
[1729336260898,40.380784,154.7,154.6,15.3882]
[1729336261192,47.019484,154.7,154.6,15.3882]
[1729336291090,40.380784,154.7,154.6,15.3882]
[1729336291313,11.59384769,154.74,154.6,15.3882]
[1729336291314,22.0227,154.74,154.6,15.3882]
[1729336291529,22.0227,154.74,154.63,20.0]
[1729336291816,22.0227,154.74,154.64,16.1136]
[1729336292795,23.776884,154.73,154.64,16.1136]
[1729336302921,15.3676,154.74,154.65,20.0]
[1729336303223,8.97998061,154.75,154.65,20.0]
[1729336303602,8.97998061,154.75,154.65,27.78160716]
[1729336314009,8.97998061,154.75,154.65,33.59462801]
[1729336316439,0.6259383,154.77,154.65,33.59462801]
[1729336316734,23.776884,154.76,154.67,20.0]
[1729336317106,16.6302,154.72,154.66,5.81302085]
[1729336317401,23.776884,154.71,154.55,15.0545]
[1729336318419,23.776884,154.71,154.56,20.0]
[1729336318814,23.776884,154.71,154.58,20.0]
[1729336321217,23.776884,154.71,154.6,20.0]
[1729336321634,23.776884,154.71,154.6,35.1994]
[1729336344844,23.776884,154.71,154.6,15.1994]
[1729336344845,23.776884,154.69,154.6,15.1994]
[1729336345546,16.1345,154.68,154.56,15.4076]
[1729336345751,23.776884,154.67,154.56,15.4076]
[1729336352057,16.1345,154.68,154.56,15.4076]
[1729336353935,16.1345,154.68,154.57,23.776884]
[1729336388703,16.2329458,154.68,154.57,23.776884]
[1729336390701,23.776884,154.67,154.57,20.0]
[1729336392885,16.2329458,154.68,154.57,20.0]
[1729336393776,23.776884,154.67,154.57,20.0]
[1729336398304,16.2329458,154.68,154.57,20.0]
[1729336428527,23.776884,154.67,154.57,20.0]
[1729336428821,23.776884,154.67,154.56,15.4076]
[1729336430745,16.2329458,154.68,154.56,15.4076]
[1729336430899,23.776884,154.67,154.56,15.4076]
[1729336433999,23.8753298,154.67,154.56,15.4076]
[1729336460063,0.0984458,154.67,154.57,43.776884]
[1729336460243,0.0984458,154.67,154.57,50.95786522]
[1729336474968,0.0984458,154.67,154.58,22.5251]
[1729336475170,0.0984458,154.67,154.59,50.95786522]
[1729336475970,0.0984458,154.67,154.59,56.18935274]
[1729336480785,0.0984458,154.67,154.59,50.95786522]
[1729336486787,0.0984458,154.67,154.59,30.95786522]
[1729336503469,0.0984458,154.67,154.59,30.95786522]
[1729336544593,0.0984458,154.67,154.59,7.18098122]
[1729336551823,0.0984458,154.67,154.6,23.776884]
[1729336552022,0.0984458,154.67,154.6,7.18098122]
[1729336556725,0.0984458,154.67,154.61,23.776884]
[1729336557105,0.0984458,154.67,154.61,7.18098122]
[1729336559727,0.0984458,154.67,154.62,23.776884]
[1729336559911,0.0984458,154.67,154.62,30.95786522]
[1729336572920,0.0984458,154.67,154.63,7.18098122]
[1729336611456,0.0984458,154.67,154.61,11.9550567]
[1729336612940,0.0984458,154.67,154.61,19.13603792]
[1729336613464,0.0984458,154.67,154.62,7.18098122]
[1729336613670,0.0984458,154.67,154.62,13.91980043]
[1729336620881,0.0984458,154.67,154.62,6.73881921]
[1729336634784,0.0984458,154.67,154.62,13.91980043]
[1729336635085,0.0984458,154.67,154.62,19.15128795]
[1729336640177,0.0984458,154.67,154.62,13.91980043]
[1729336644985,0.0984458,154.67,154.63,7.18098122]
[1729336679224,6.1436458,154.67,154.62,6.73881921]
[1729336688201,16.3057,154.66,154.62,6.73881921]
[1729336691611,16.3057,154.66,154.54,22.21475452]
[1729336691802,16.4041458,154.66,154.54,29.16151908]
[1729336691997,16.4041458,154.66,154.55,23.776884]
[1729336692212,16.4041458,154.66,154.55,42.17653608]
[1729336692409,16.4041458,154.66,154.56,5.23148752]
[1729336692616,16.4041458,154.66,154.56,19.288548]
[1729336693007,16.4041458,154.66,154.57,23.776884]
[1729336693315,16.4041458,154.66,154.57,29.00837152]
[1729336693697,16.4041458,154.66,154.57,23.776884]
[1729336696427,16.4041458,154.66,154.57,29.00837152]
[1729336703003,16.4041458,154.66,154.57,5.23148752]
[1729336703515,16.4041458,154.66,154.57,12.17825208]
[1729336709727,0.0984458,154.66,154.58,30.72364856]
[1729336709937,0.0984458,154.66,154.59,15.4878]
[1729336710810,0.0984458,154.66,154.6,23.776884]
[1729336711012,0.0984458,154.66,154.6,35.95513608]
[1729336711227,0.0984458,154.66,154.61,5.23148752]
[1729336711426,0.0984458,154.66,154.61,12.17825208]
[1729336712111,0.0984458,154.66,154.62,30.72364856]
[1729336712334,0.0984458,154.66,154.62,35.95513608]
[1729336714710,0.0984458,154.66,154.62,6.94676456]
[1729336714916,0.0984458,154.66,154.6,43.776884]
[1729336720141,0.0984458,154.66,154.62,43.776884]
[1729336724756,0.0984458,154.66,154.62,23.776884]
[1729336725551,0.0984458,154.66,154.6,23.776884]
[1729336734431,0.0984458,154.66,154.6,30.57032213]
[1729336754274,0.0984458,154.66,154.61,6.79343813]
[1729336757873,0.0984458,154.66,154.62,20.0]
[1729336785885,0.0984458,154.66,154.63,23.776884]
[1729336786788,0.0984458,154.66,154.64,20.0]
[1729336788386,0.0984458,154.66,154.65,43.776884]
[1729336797686,0.0984458,154.66,154.65,50.57032213]
[1729336801131,0.0984458,154.66,154.65,43.776884]
[1729336801349,0.0984458,154.66,154.64,23.776884]
[1729336802737,0.0984458,154.66,154.65,43.776884]
[1729336817842,0.0984458,154.66,154.65,23.776884]
[1729336818047,0.0984458,154.66,154.64,23.776884]
[1729336818440,0.0984458,154.66,154.63,6.71898375]
[1729336818626,0.0984458,154.66,154.63,43.776884]
[1729336821450,0.0984458,154.66,154.63,23.776884]
[1729336827745,0.0984458,154.66,154.63,30.57032213]
[1729336827945,0.0984458,154.66,154.65,23.776884]
[1729336828150,0.0984458,154.66,154.65,50.57032213]
[1729336840681,0.0984458,154.66,154.65,30.57032213]
[1729336840848,0.0984458,154.66,154.63,23.776884]
[1729336841772,0.0984458,154.66,154.62,12.80805058]
[1729336842867,0.0984458,154.66,154.63,23.776884]
[1729336843955,0.0984458,154.66,154.62,12.80805058]
[1729336844281,16.0913,154.65,154.62,6.08483721]
[1729336858377,16.1897458,154.65,154.62,6.08483721]
[1729336867597,16.1897458,154.65,154.58,23.776884]
[1729336872185,16.1897458,154.65,154.57,23.776884]
[1729336872884,16.1897458,154.65,154.56,6.72403251]
[1729336880094,16.1897458,154.65,154.54,23.776884]
[1729336885029,16.1897458,154.65,154.54,6.79343813]
[1729336885322,16.1897458,154.65,154.55,23.776884]
[1729336896724,0.0984458,154.65,154.57,23.776884]
[1729336899515,15.1674,154.64,154.56,20.93134817]
[1729336903834,15.2658458,154.64,154.56,20.93134817]
[1729336907240,0.0984458,154.64,154.57,23.776884]
[1729336926955,0.0984458,154.64,154.57,30.57032213]
[1729336929733,0.0984458,154.64,154.57,23.776884]
[1729336951754,0.0984458,154.64,154.56,12.11969469]
[1729336952048,15.6214458,154.64,154.56,12.11969469]
[1729336952250,15.6214458,154.64,154.56,5.39614817]
[1729336960645,15.6214458,154.64,154.53,6.7240918]
[1729336960847,15.6214458,154.64,154.52,15.0695]
[1729336963049,30.243884,154.63,154.52,15.0695]
[1729336963249,23.776884,154.63,154.52,15.0695]
[1729336963866,6.3952,154.62,154.51,6.3819]
[1729336964060,6.3952,154.62,154.49,7.8492346]
[1729336964061,39.569584,154.61,154.49,7.8492346]
[1729336964262,39.569584,154.61,154.49,1.12277429]
[1729336964475,39.569584,154.61,154.48,22.53213813]
[1729336965362,39.569584,154.61,154.49,29.43580665]
[1729336966655,39.569584,154.61,154.49,5.65892265]
[1729336974271,39.569584,154.61,154.49,23.776884]
[1729336986976,15.7927,154.61,154.51,23.776884]
[1729336987177,15.7927,154.61,154.52,16.0346]
[1729336993407,0.0984458,154.64,154.52,16.0346]
[1729336993408,0.0984458,154.64,154.53,23.776884]
[1729336995186,0.0984458,154.64,154.54,6.0763]
[1729336996610,0.0984458,154.64,154.55,23.776884]
[1729336997507,0.0984458,154.64,154.56,16.2418]
[1729337012220,0.0984458,154.64,154.52,4.83608309]
[1729337012221,16.648,154.62,154.47,17.10040747]
[1729337012405,16.648,154.62,154.47,15.9787]
[1729337012608,16.648,154.62,154.47,22.70228531]
[1729337012806,16.648,154.62,154.47,23.82456571]
[1729337013198,16.648,154.62,154.47,22.70228531]
[1729337013809,16.648,154.62,154.49,23.776884]
[1729337016137,16.648,154.62,154.5,6.1134]
[1729337016339,16.648,154.62,154.51,23.776884]
[1729337038736,16.648,154.62,154.52,15.6492]
[1729337052454,16.648,154.62,154.51,23.776884]
[1729337055463,16.648,154.62,154.5,6.1134]
[1729337057635,16.648,154.62,154.5,23.776884]
[1729337069341,23.776884,154.61,154.49,23.16112324]
[1729337080768,23.64157929,154.62,154.5,23.776884]
[1729337103772,23.64157929,154.62,154.52,23.776884]
[1729337103971,6.99357929,154.62,154.53,15.9825]
[1729337110884,6.99357929,154.62,154.54,23.776884]
[1729337111202,6.99357929,154.62,154.55,6.1277]
[1729337119906,6.99357929,154.62,154.56,23.776884]
[1729337125198,0.0984458,154.64,154.56,23.776884]
[1729337132817,0.0984458,154.64,154.56,20.15577935]
[1729337133019,0.0984458,154.64,154.55,6.1277]
[1729337148028,0.0984458,154.64,154.56,23.776884]
[1729337177251,0.0984458,154.64,154.58,23.776884]
[1729337180563,0.0984458,154.64,154.6,23.776884]
[1729337194468,0.0984458,154.64,154.59,7.55180102]
[1729337298351,0.0984458,154.64,154.6,23.776884]
[1729337308764,0.0984458,154.64,154.59,23.776884]
[1729337319061,0.0984458,154.64,154.58,30.51888467]
[1729337417241,0.0984458,154.64,154.58,6.74200067]